[Event "Early-Titled-Tuesday-Blitz-May-14-2024"]
[Site "Chess.com"]
[Date "2024.05.14"]
[Round "1"]
[White "GeorgiosSouleidis"]
[Black "Khromkin"]
[Result "1-0"]
[WhiteElo "2688"]
[BlackElo "2374"]
[TimeControl "180+1"]
[EndTime "8:07:19 PDT"]
[Termination "GeorgiosSouleidis won on time"]

1. e4 {[%clk 0:03:00.4]} 1... c5 {[%clk 0:02:53.5]} 2. Be2 {[%clk 0:02:59.3]}
2... Nc6 {[%clk 0:02:53]} 3. d3 {[%clk 0:02:58.8]} 3... g6 {[%clk 0:02:53.5]} 4.
f4 {[%clk 0:02:59.2]} 4... Bg7 {[%clk 0:02:54.2]} 5. Nf3 {[%clk 0:03:00.1]} 5...
e6 {[%clk 0:02:54.4]} 6. O-O {[%clk 0:03:00.2]} 6... Rb8 {[%clk 0:02:54.5]} 7.
c3 {[%clk 0:03:00.4]} 7... b5 {[%clk 0:02:55]} 8. a3 {[%clk 0:03:00.6]} 8...
Nge7 {[%clk 0:02:53.8]} 9. Be3 {[%clk 0:03:00.7]} 9... d6 {[%clk 0:02:52.6]} 10.
d4 {[%clk 0:02:58.8]} 10... cxd4 {[%clk 0:02:51.8]} 11. cxd4 {[%clk 0:02:59.7]}
11... d5 {[%clk 0:02:50.9]} 12. e5 {[%clk 0:03:00]} 12... Nf5 {[%clk 0:02:49.9]}
13. Bf2 {[%clk 0:03:00.5]} 13... h5 {[%clk 0:02:50.5]} 14. Nc3 {[%clk
0:02:56.5]} 14... a6 {[%clk 0:02:49.6]} 15. Rc1 {[%clk 0:02:56]} 15... Bd7
{[%clk 0:02:46.4]} 16. b4 {[%clk 0:02:51.7]} 16... Qb6 {[%clk 0:02:38]} 17. Qd2
{[%clk 0:02:47.9]} 17... O-O {[%clk 0:02:16.3]} 18. g3 {[%clk 0:02:47.6]} 18...
Rbc8 {[%clk 0:02:06.3]} 19. h3 {[%clk 0:02:43]} 19... Rc7 {[%clk 0:01:56.3]} 20.
g4 {[%clk 0:02:42.9]} 20... hxg4 {[%clk 0:01:56.6]} 21. hxg4 {[%clk 0:02:43.8]}
21... Nh6 {[%clk 0:01:54.1]} 22. Nh2 {[%clk 0:02:19.8]} 22... Rfc8 {[%clk
0:01:27.7]} 23. Be3 {[%clk 0:02:19.6]} 23... f6 {[%clk 0:01:23.7]} 24. Kg2
{[%clk 0:01:57.8]} 24... Nf7 {[%clk 0:01:19.7]} 25. Nf3 {[%clk 0:01:46.9]} 25...
g5 {[%clk 0:01:17.6]} 26. exf6 {[%clk 0:01:44.5]} 26... Bxf6 {[%clk 0:01:08.2]}
27. fxg5 {[%clk 0:01:43.1]} 27... Bg7 {[%clk 0:01:08.7]} 28. Bd3 {[%clk
0:01:09.6]} 28... Ne7 {[%clk 0:00:51.2]} 29. Ne2 {[%clk 0:01:05.6]} 29... Nd6
{[%clk 0:00:45.3]} 30. Rxc7 {[%clk 0:00:52]} 30... Rxc7 {[%clk 0:00:43.6]} 31.
Bb1 {[%clk 0:00:51.9]} 31... Nc4 {[%clk 0:00:37.2]} 32. Qd3 {[%clk 0:00:52.4]}
32... Nxe3+ {[%clk 0:00:37.4]} 33. Qxe3 {[%clk 0:00:51.8]} 33... Be8 {[%clk
0:00:27.3]} 34. Nf4 {[%clk 0:00:49.4]} 34... Rc4 {[%clk 0:00:15.4]} 35. Nxe6
{[%clk 0:00:35.4]} 35... Qd6 {[%clk 0:00:10.5]} 36. Nxg7 {[%clk 0:00:33.8]}
36... Kxg7 {[%clk 0:00:10.8]} 37. Ne5 {[%clk 0:00:32.9]} 37... Rc7 {[%clk
0:00:03.7]} 38. Qf4 {[%clk 0:00:28.5]} 38... Ng6 {[%clk 0:00:00.8]} 39. Bxg6
{[%clk 0:00:27.1]} 39... Bxg6 {[%clk 0:00:01.4]} 40. Qf6+ {[%clk 0:00:24.4]} 1-0

[Event "Early-Titled-Tuesday-Blitz-May-14-2024"]
[Site "Chess.com"]
[Date "2024.05.14"]
[Round "1"]
[White "BestStelker"]
[Black "rudolfjun2005"]
[Result "1/2-1/2"]
[WhiteElo "2733"]
[BlackElo "2428"]
[TimeControl "180+1"]
[EndTime "8:07:20 PDT"]
[Termination "Game drawn by repetition"]

1. e4 {[%clk 0:02:54]} 1... c5 {[%clk 0:02:59.5]} 2. Nf3 {[%clk 0:02:53.1]} 2...
Nc6 {[%clk 0:02:58.2]} 3. Bb5 {[%clk 0:02:53.2]} 3... g6 {[%clk 0:02:57.4]} 4.
O-O {[%clk 0:02:53]} 4... Bg7 {[%clk 0:02:57.2]} 5. Re1 {[%clk 0:02:53.7]} 5...
e5 {[%clk 0:02:55.5]} 6. Bxc6 {[%clk 0:02:51.4]} 6... dxc6 {[%clk 0:02:55.3]} 7.
d3 {[%clk 0:02:52.3]} 7... Qe7 {[%clk 0:02:55.3]} 8. a4 {[%clk 0:02:49.1]} 8...
Nf6 {[%clk 0:02:51]} 9. a5 {[%clk 0:02:48.9]} 9... Bg4 {[%clk 0:02:48.6]} 10. h3
{[%clk 0:02:48.7]} 10... Bxf3 {[%clk 0:02:48.5]} 11. Qxf3 {[%clk 0:02:49.6]}
11... Nd7 {[%clk 0:02:48.8]} 12. Nd2 {[%clk 0:02:48.3]} 12... Nf8 {[%clk
0:02:47.9]} 13. Nc4 {[%clk 0:02:47]} 13... Ne6 {[%clk 0:02:46.7]} 14. Qg3 {[%clk
0:02:37.4]} 14... O-O {[%clk 0:02:26.3]} 15. c3 {[%clk 0:02:25.7]} 15... f6
{[%clk 0:02:22.6]} 16. b3 {[%clk 0:02:05.4]} 16... Rad8 {[%clk 0:02:12.6]} 17.
Ba3 {[%clk 0:02:04.2]} 17... Rd7 {[%clk 0:02:09.6]} 18. Rad1 {[%clk 0:01:57.8]}
18... Rfd8 {[%clk 0:02:09.3]} 19. Bc1 {[%clk 0:01:51.3]} 19... Nc7 {[%clk
0:01:56.2]} 20. f4 {[%clk 0:01:40.5]} 20... exf4 {[%clk 0:01:37.1]} 21. Bxf4
{[%clk 0:01:41.4]} 21... Nb5 {[%clk 0:01:37.1]} 22. e5 {[%clk 0:01:27.9]} 22...
Nxc3 {[%clk 0:01:25]} 23. Rd2 {[%clk 0:01:08.3]} 23... Qe6 {[%clk 0:00:42.2]}
24. exf6 {[%clk 0:00:59.8]} 24... Qxf6 {[%clk 0:00:41.4]} 25. Bg5 {[%clk
0:00:51.3]} 25... Qd4+ {[%clk 0:00:40.3]} 26. Kh1 {[%clk 0:00:49.4]} 26... Bf6
{[%clk 0:00:27.5]} 27. Ne5 {[%clk 0:00:27.8]} 27... Bxg5 {[%clk 0:00:23.3]} 28.
Qxg5 {[%clk 0:00:22.4]} 28... Re8 {[%clk 0:00:20.6]} 29. Nf3 {[%clk 0:00:09.8]}
29... Rxe1+ {[%clk 0:00:20.3]} 30. Nxe1 {[%clk 0:00:10.7]} 30... Qd5 {[%clk
0:00:20.4]} 31. Qf6 {[%clk 0:00:09.3]} 31... Rf7 {[%clk 0:00:19.6]} 32. Qxc3
{[%clk 0:00:06.4]} 32... Rf1+ {[%clk 0:00:19.6]} 33. Kh2 {[%clk 0:00:06.8]}
33... Qd6+ {[%clk 0:00:19.7]} 34. g3 {[%clk 0:00:05.9]} 34... Rxe1 {[%clk
0:00:20.2]} 35. Rf2 {[%clk 0:00:04.5]} 35... Re8 {[%clk 0:00:20.6]} 36. Qd2
{[%clk 0:00:04]} 36... Rd8 {[%clk 0:00:20.2]} 37. Rf3 {[%clk 0:00:02.6]} 37...
Re8 {[%clk 0:00:20.8]} 38. Qf2 {[%clk 0:00:02.6]} 38... Qe6 {[%clk 0:00:20.8]}
39. h4 {[%clk 0:00:01.9]} 39... Qe2 {[%clk 0:00:20.6]} 40. Rf8+ {[%clk
0:00:01.9]} 40... Kg7 {[%clk 0:00:20.7]} 41. Rf7+ {[%clk 0:00:02.7]} 41... Kg8
{[%clk 0:00:20.5]} 42. Rf8+ {[%clk 0:00:03.2]} 42... Kg7 {[%clk 0:00:21.1]} 43.
Rf7+ {[%clk 0:00:03.9]} 43... Kg8 {[%clk 0:00:21.7]} 44. Rf8+ {[%clk 0:00:04.1]}
1/2-1/2

[Event "Early-Titled-Tuesday-Blitz-May-14-2024"]
[Site "Chess.com"]
[Date "2024.05.14"]
[Round "1"]
[White "tandaleo"]
[Black "DonJuanEGenaro"]
[Result "1-0"]
[WhiteElo "2557"]
[BlackElo "2009"]
[TimeControl "180+1"]
[EndTime "8:07:20 PDT"]
[Termination "tandaleo won on time"]

1. d4 {[%clk 0:02:59.2]} 1... d5 {[%clk 0:02:50.9]} 2. Nf3 {[%clk 0:02:34.7]}
2... Nf6 {[%clk 0:02:49]} 3. e3 {[%clk 0:02:29.3]} 3... e6 {[%clk 0:02:48.4]} 4.
Bd3 {[%clk 0:02:27.7]} 4... c5 {[%clk 0:02:47.7]} 5. b3 {[%clk 0:02:27.1]} 5...
Nc6 {[%clk 0:02:46.2]} 6. Bb2 {[%clk 0:02:25.6]} 6... cxd4 {[%clk 0:02:45.8]} 7.
exd4 {[%clk 0:02:25.4]} 7... Bd6 {[%clk 0:02:41.5]} 8. O-O {[%clk 0:01:59.7]}
8... O-O {[%clk 0:02:38.3]} 9. Nbd2 {[%clk 0:02:00]} 9... Re8 {[%clk 0:02:37.6]}
10. Ne5 {[%clk 0:01:58.5]} 10... Qb6 {[%clk 0:02:12.8]} 11. Ndf3 {[%clk
0:01:53]} 11... Ne4 {[%clk 0:01:29.1]} 12. Re1 {[%clk 0:01:45.6]} 12... Bxe5
{[%clk 0:01:27]} 13. Bxe4 {[%clk 0:01:38.9]} 13... dxe4 {[%clk 0:01:20.3]} 14.
Nxe5 {[%clk 0:01:39]} 14... Nxe5 {[%clk 0:01:19.8]} 15. dxe5 {[%clk 0:01:39.6]}
15... Rd8 {[%clk 0:00:59.7]} 16. Qe2 {[%clk 0:01:39.8]} 16... Bd7 {[%clk
0:00:58.1]} 17. Ba3 {[%clk 0:01:36.6]} 17... Bc6 {[%clk 0:00:57.5]} 18. Bd6
{[%clk 0:01:36.2]} 18... Rd7 {[%clk 0:00:50.8]} 19. c4 {[%clk 0:01:36.3]} 19...
Rad8 {[%clk 0:00:49.8]} 20. c5 {[%clk 0:01:36.8]} 20... Qb4 {[%clk 0:00:49.4]}
21. Qe3 {[%clk 0:01:25.4]} 21... Bd5 {[%clk 0:00:41.3]} 22. Red1 {[%clk
0:01:05.7]} 22... a5 {[%clk 0:00:39.9]} 23. Rd4 {[%clk 0:01:03.6]} 23... Qb5
{[%clk 0:00:37.4]} 24. Rc1 {[%clk 0:00:32.4]} 24... Ra8 {[%clk 0:00:35.3]} 25.
Qd2 {[%clk 0:00:28.8]} 25... b6 {[%clk 0:00:24.3]} 26. Rxd5 {[%clk 0:00:27.4]}
26... exd5 {[%clk 0:00:22.4]} 27. c6 {[%clk 0:00:27.8]} 27... Rdd8 {[%clk
0:00:19.1]} 28. c7 {[%clk 0:00:27.4]} 28... Rdc8 {[%clk 0:00:18.4]} 29. Rd1
{[%clk 0:00:18.4]} 29... a4 {[%clk 0:00:17.5]} 30. b4 {[%clk 0:00:18.4]} 30...
a3 {[%clk 0:00:11.8]} 31. Qxd5 {[%clk 0:00:18.7]} 31... Qe2 {[%clk 0:00:11.4]}
32. h3 {[%clk 0:00:10.9]} 32... e3 {[%clk 0:00:08.1]} 33. fxe3 {[%clk
0:00:11.3]} 33... Qxe3+ {[%clk 0:00:07.7]} 34. Kh1 {[%clk 0:00:12]} 34... Re8
{[%clk 0:00:06.7]} 35. Rf1 {[%clk 0:00:11.1]} 1-0

[Event "Early-Titled-Tuesday-Blitz-May-14-2024"]
[Site "Chess.com"]
[Date "2024.05.14"]
[Round "1"]
[White "ajeale2"]
[Black "Zurability"]
[Result "1-0"]
[WhiteElo "2488"]
[BlackElo "2805"]
[TimeControl "180+1"]
[EndTime "8:07:22 PDT"]
[Termination "ajeale2 won on time"]

1. b3 {[%clk 0:03:00.1]} 1... d5 {[%clk 0:02:58.3]} 2. Bb2 {[%clk 0:03:00.6]}
2... Nf6 {[%clk 0:02:59]} 3. Nf3 {[%clk 0:03:01.1]} 3... Bg4 {[%clk 0:02:59]} 4.
e3 {[%clk 0:03:01.2]} 4... Nbd7 {[%clk 0:02:58.1]} 5. h3 {[%clk 0:03:00.8]} 5...
Bh5 {[%clk 0:02:58.2]} 6. g4 {[%clk 0:02:59.8]} 6... Bg6 {[%clk 0:02:58.4]} 7.
Bg2 {[%clk 0:03:00.4]} 7... e6 {[%clk 0:02:57.6]} 8. O-O {[%clk 0:03:00.8]} 8...
Bd6 {[%clk 0:02:57.8]} 9. d3 {[%clk 0:02:58.8]} 9... e5 {[%clk 0:02:50.3]} 10.
c4 {[%clk 0:02:53.2]} 10... c6 {[%clk 0:02:46]} 11. d4 {[%clk 0:02:40.9]} 11...
e4 {[%clk 0:02:34.4]} 12. Ne5 {[%clk 0:02:40.7]} 12... Qe7 {[%clk 0:02:33.6]}
13. cxd5 {[%clk 0:02:31.7]} 13... Nxe5 {[%clk 0:02:04.7]} 14. dxe5 {[%clk
0:02:30.1]} 14... Bxe5 {[%clk 0:02:05.6]} 15. Nc3 {[%clk 0:02:16.2]} 15... Rd8
{[%clk 0:02:00]} 16. Qe2 {[%clk 0:02:10.3]} 16... Nxd5 {[%clk 0:01:28.8]} 17.
Nxd5 {[%clk 0:02:06.1]} 17... Rxd5 {[%clk 0:01:29.7]} 18. Rfd1 {[%clk
0:02:02.2]} 18... Bxb2 {[%clk 0:01:09.3]} 19. Qxb2 {[%clk 0:02:00.5]} 19... Rd3
{[%clk 0:01:10]} 20. Qxg7 {[%clk 0:01:48.8]} 20... Rf8 {[%clk 0:01:02.4]} 21.
Bf1 {[%clk 0:01:44.5]} 21... Rxd1 {[%clk 0:00:29.2]} 22. Rxd1 {[%clk 0:01:44.1]}
22... f5 {[%clk 0:00:29.7]} 23. Qd4 {[%clk 0:01:25.2]} 23... fxg4 {[%clk
0:00:24.6]} 24. hxg4 {[%clk 0:01:25]} 24... h5 {[%clk 0:00:23.2]} 25. Qxa7
{[%clk 0:00:54.7]} 25... Kf7 {[%clk 0:00:16.8]} 26. Qd4 {[%clk 0:00:37.2]} 26...
Kg8 {[%clk 0:00:15]} 27. gxh5 {[%clk 0:00:17.9]} 27... Qg5+ {[%clk 0:00:10.1]}
28. Bg2 {[%clk 0:00:18.4]} 28... Bxh5 {[%clk 0:00:10.3]} 29. Qc4+ {[%clk
0:00:18]} 29... Kh8 {[%clk 0:00:05.9]} 30. Qd4+ {[%clk 0:00:16.7]} 30... Kh7
{[%clk 0:00:04]} 31. Qxe4+ {[%clk 0:00:15.1]} 31... Kg8 {[%clk 0:00:03.9]} 32.
Rd7 {[%clk 0:00:13.8]} 32... Qh6 {[%clk 0:00:01.7]} 33. Qh4 {[%clk 0:00:07.4]}
33... Qg6 {[%clk 0:00:01.2]} 34. Rd4 {[%clk 0:00:03.9]} 1-0

[Event "Early-Titled-Tuesday-Blitz-May-14-2024"]
[Site "Chess.com"]
[Date "2024.05.14"]
[Round "1"]
[White "DrKerfuffle"]
[Black "Tigranpatagonian"]
[Result "1-0"]
[WhiteElo "2689"]
[BlackElo "2377"]
[TimeControl "180+1"]
[EndTime "8:07:22 PDT"]
[Termination "DrKerfuffle won on time"]

1. e4 {[%clk 0:02:58.4]} 1... e6 {[%clk 0:02:59.5]} 2. d4 {[%clk 0:02:57.9]}
2... d5 {[%clk 0:02:58.9]} 3. exd5 {[%clk 0:02:58.8]} 3... exd5 {[%clk
0:02:58.7]} 4. c4 {[%clk 0:02:58.8]} 4... Nf6 {[%clk 0:02:58.9]} 5. Nc3 {[%clk
0:02:59.1]} 5... Be7 {[%clk 0:02:59.4]} 6. Nf3 {[%clk 0:02:58.8]} 6... O-O
{[%clk 0:02:59.6]} 7. Bd3 {[%clk 0:02:58.9]} 7... dxc4 {[%clk 0:02:59.6]} 8.
Bxc4 {[%clk 0:02:59.8]} 8... Bg4 {[%clk 0:02:58.4]} 9. O-O {[%clk 0:02:59.4]}
9... Nbd7 {[%clk 0:02:50.2]} 10. Re1 {[%clk 0:02:56.5]} 10... Nb6 {[%clk
0:02:48.4]} 11. Bb3 {[%clk 0:02:56.9]} 11... c6 {[%clk 0:02:42.6]} 12. h3 {[%clk
0:02:56.1]} 12... Bh5 {[%clk 0:02:40.8]} 13. g4 {[%clk 0:02:55.9]} 13... Bg6
{[%clk 0:02:40.5]} 14. Ne5 {[%clk 0:02:56.8]} 14... Nfd5 {[%clk 0:02:37.9]} 15.
Qf3 {[%clk 0:02:54.4]} 15... Bf6 {[%clk 0:02:13.3]} 16. Ne4 {[%clk 0:02:42.4]}
16... Bxe4 {[%clk 0:02:09.2]} 17. Rxe4 {[%clk 0:02:41.2]} 17... Qd6 {[%clk
0:01:51.5]} 18. g5 {[%clk 0:02:30.3]} 18... Bxe5 {[%clk 0:01:49.5]} 19. dxe5
{[%clk 0:02:31.2]} 19... Qd7 {[%clk 0:01:36.1]} 20. Rh4 {[%clk 0:02:28.2]} 20...
g6 {[%clk 0:01:23.5]} 21. Be3 {[%clk 0:02:04.8]} 21... Rfe8 {[%clk 0:01:19.8]}
22. Bd4 {[%clk 0:01:51.3]} 22... c5 {[%clk 0:01:03.6]} 23. Bxc5 {[%clk
0:01:49.5]} 23... Rxe5 {[%clk 0:01:02.3]} 24. Rg4 {[%clk 0:01:45.8]} 24... Rae8
{[%clk 0:00:56.4]} 25. Bd4 {[%clk 0:01:41.4]} 25... Rf5 {[%clk 0:00:40.2]} 26.
Qg3 {[%clk 0:01:34.6]} 26... Nc7 {[%clk 0:00:19.9]} 27. Rd1 {[%clk 0:01:30.3]}
27... Nbd5 {[%clk 0:00:19.3]} 28. Qh4 {[%clk 0:01:24.5]} 28... Ne6 {[%clk
0:00:17.2]} 29. Bf6 {[%clk 0:01:19.1]} 29... h5 {[%clk 0:00:13.1]} 30. Rg3
{[%clk 0:01:08.6]} 30... Nef4 {[%clk 0:00:10.4]} 31. Bxd5 {[%clk 0:00:57.6]}
31... Rxd5 {[%clk 0:00:07.9]} 32. Qxf4 {[%clk 0:00:21.6]} 32... Rxd1+ {[%clk
0:00:06.6]} 33. Kh2 {[%clk 0:00:20.7]} 33... Ree1 {[%clk 0:00:02.7]} 34. Qb8+
{[%clk 0:00:15.1]} 34... Re8 {[%clk 0:00:02.2]} 35. Qf4 {[%clk 0:00:15.5]} 35...
Qd5 {[%clk 0:00:01.9]} 36. Rf3 {[%clk 0:00:14.8]} 1-0

[Event "Early-Titled-Tuesday-Blitz-May-14-2024"]
[Site "Chess.com"]
[Date "2024.05.14"]
[Round "1"]
[White "yaguigor"]
[Black "aljado"]
[Result "1-0"]
[WhiteElo "2572"]
[BlackElo "2139"]
[TimeControl "180+1"]
[EndTime "8:07:22 PDT"]
[Termination "yaguigor won by resignation"]

1. Nf3 {[%clk 0:02:59.1]} 1... Nf6 {[%clk 0:02:58.8]} 2. c4 {[%clk 0:02:58.5]}
2... g6 {[%clk 0:02:57]} 3. Nc3 {[%clk 0:02:57.9]} 3... Bg7 {[%clk 0:02:57.4]}
4. e4 {[%clk 0:02:57.6]} 4... d6 {[%clk 0:02:56.7]} 5. d4 {[%clk 0:02:53]} 5...
O-O {[%clk 0:02:55.1]} 6. Be2 {[%clk 0:02:52.7]} 6... e5 {[%clk 0:02:50.2]} 7.
O-O {[%clk 0:02:51.6]} 7... Nc6 {[%clk 0:02:49.7]} 8. d5 {[%clk 0:02:50.4]} 8...
Ne7 {[%clk 0:02:49.8]} 9. b4 {[%clk 0:02:51.1]} 9... Nh5 {[%clk 0:02:44.1]} 10.
Re1 {[%clk 0:02:47.7]} 10... f5 {[%clk 0:02:44]} 11. Ng5 {[%clk 0:02:36.2]}
11... Nf4 {[%clk 0:02:35.1]} 12. Bf3 {[%clk 0:02:32.7]} 12... h6 {[%clk
0:02:28.9]} 13. Ne6 {[%clk 0:02:31.1]} 13... Nxe6 {[%clk 0:02:28.4]} 14. dxe6
{[%clk 0:02:30.6]} 14... Bxe6 {[%clk 0:02:27]} 15. exf5 {[%clk 0:02:29.6]} 15...
Nxf5 {[%clk 0:02:22.2]} 16. Bxb7 {[%clk 0:02:26.4]} 16... Rb8 {[%clk 0:02:07.7]}
17. Bd5 {[%clk 0:02:23.6]} 17... Qf6 {[%clk 0:02:03.4]} 18. b5 {[%clk
0:02:03.1]} 18... Nd4 {[%clk 0:01:58.2]} 19. Ne4 {[%clk 0:02:01.3]} 19... Qf5
{[%clk 0:01:47.3]} 20. Bxe6+ {[%clk 0:01:52.8]} 20... Qxe6 {[%clk 0:01:45.7]}
21. Qd3 {[%clk 0:01:51.8]} 21... Qg4 {[%clk 0:01:24.7]} 22. Kh1 {[%clk
0:01:34.9]} 22... Qe6 {[%clk 0:01:17.1]} 23. Be3 {[%clk 0:01:31.6]} 23... d5
{[%clk 0:01:05.9]} 24. cxd5 {[%clk 0:01:30.5]} 24... Qxd5 {[%clk 0:01:05.2]} 25.
a4 {[%clk 0:01:24.6]} 25... Rbd8 {[%clk 0:00:58.2]} 26. Rac1 {[%clk 0:01:20.6]}
26... Rf7 {[%clk 0:00:53.6]} 27. Rc5 {[%clk 0:01:11.5]} 27... Qa2 {[%clk
0:00:49.9]} 28. Qc4 {[%clk 0:01:08]} 28... Qxc4 {[%clk 0:00:46.8]} 29. Rxc4
{[%clk 0:01:08.9]} 29... Rfd7 {[%clk 0:00:42.6]} 30. h3 {[%clk 0:01:02.6]} 30...
Kh7 {[%clk 0:00:40.4]} 31. Nc5 {[%clk 0:00:50.6]} 31... Rf7 {[%clk 0:00:35.5]}
32. Na6 {[%clk 0:00:49.9]} 32... Rdd7 {[%clk 0:00:33.2]} 33. Rec1 {[%clk
0:00:46.5]} 33... Nb3 {[%clk 0:00:25.1]} 34. Re1 {[%clk 0:00:43.2]} 34... Nd4
{[%clk 0:00:23.9]} 35. Rd1 {[%clk 0:00:42.8]} 35... Ne2 {[%clk 0:00:19.5]} 36.
Rxd7 {[%clk 0:00:42]} 36... Rxd7 {[%clk 0:00:19.1]} 37. Rxc7 {[%clk 0:00:42.2]}
37... Rd1+ {[%clk 0:00:17]} 38. Kh2 {[%clk 0:00:41.8]} 38... Ra1 {[%clk
0:00:13]} 39. Rxa7 {[%clk 0:00:36.8]} 39... Rxa4 {[%clk 0:00:12.3]} 40. b6
{[%clk 0:00:35.9]} 40... e4 {[%clk 0:00:05.1]} 41. Nc5 {[%clk 0:00:32.9]} 41...
Kg8 {[%clk 0:00:03.3]} 42. Nxa4 {[%clk 0:00:31.4]} 1-0

[Event "Early-Titled-Tuesday-Blitz-May-14-2024"]
[Site "Chess.com"]
[Date "2024.05.14"]
[Round "1"]
[White "Maluco_do_Natal_00"]
[Black "killer_dreams"]
[Result "1/2-1/2"]
[WhiteElo "2026"]
[BlackElo "2549"]
[TimeControl "180+1"]
[EndTime "8:07:22 PDT"]
[Termination "Game drawn by repetition"]

1. e4 {[%clk 0:02:59.4]} 1... c5 {[%clk 0:02:58.9]} 2. Nf3 {[%clk 0:02:58.1]}
2... d6 {[%clk 0:02:59.2]} 3. d4 {[%clk 0:02:57.9]} 3... cxd4 {[%clk 0:03:00.1]}
4. Nxd4 {[%clk 0:02:58.2]} 4... Nf6 {[%clk 0:03:00.8]} 5. Nc3 {[%clk 0:02:58.4]}
5... a6 {[%clk 0:03:01.4]} 6. Be3 {[%clk 0:02:58.2]} 6... e5 {[%clk 0:03:01.5]}
7. Nb3 {[%clk 0:02:58.1]} 7... Be7 {[%clk 0:03:01.9]} 8. f3 {[%clk 0:02:57.1]}
8... Be6 {[%clk 0:03:02.2]} 9. Qd2 {[%clk 0:02:57.3]} 9... h5 {[%clk 0:03:02.9]}
10. h3 {[%clk 0:02:56.9]} 10... h4 {[%clk 0:03:02.6]} 11. O-O-O {[%clk
0:02:56.5]} 11... Nbd7 {[%clk 0:03:02.5]} 12. Kb1 {[%clk 0:02:56.7]} 12... Rc8
{[%clk 0:03:02.4]} 13. f4 {[%clk 0:02:57]} 13... b5 {[%clk 0:02:59.9]} 14. f5
{[%clk 0:02:52.4]} 14... Bc4 {[%clk 0:02:59.3]} 15. a3 {[%clk 0:02:44.7]} 15...
Nb6 {[%clk 0:02:54.1]} 16. Na5 {[%clk 0:02:38.3]} 16... Bxf1 {[%clk 0:02:42]}
17. Rhxf1 {[%clk 0:02:28]} 17... Qc7 {[%clk 0:02:32.8]} 18. Qf2 {[%clk
0:02:16.6]} 18... Nc4 {[%clk 0:02:28]} 19. Nxc4 {[%clk 0:02:13.2]} 19... Qxc4
{[%clk 0:02:28.9]} 20. Bg5 {[%clk 0:01:47.4]} 20... O-O {[%clk 0:01:08.4]} 21.
Rfe1 {[%clk 0:01:16]} 21... b4 {[%clk 0:01:03.1]} 22. axb4 {[%clk 0:01:10.1]}
22... Qxb4 {[%clk 0:00:25.4]} 23. Rd3 {[%clk 0:01:07.2]} 23... Rb8 {[%clk
0:00:19.2]} 24. b3 {[%clk 0:01:02.1]} 24... Rfd8 {[%clk 0:00:16.7]} 25. Bxf6
{[%clk 0:00:59.2]} 25... Bxf6 {[%clk 0:00:15.9]} 26. Nd5 {[%clk 0:00:59.5]}
26... Qc5 {[%clk 0:00:15.1]} 27. Nxf6+ {[%clk 0:00:52.1]} 27... gxf6 {[%clk
0:00:16]} 28. Qxh4 {[%clk 0:00:51]} 28... Kg7 {[%clk 0:00:11.9]} 29. Rg3+ {[%clk
0:00:42.6]} 29... Kf8 {[%clk 0:00:11.8]} 30. Qxf6 {[%clk 0:00:39]} 30... Qd4
{[%clk 0:00:10.1]} 31. Rg7 {[%clk 0:00:28.6]} 31... Rd7 {[%clk 0:00:09.8]} 32.
Rh7 {[%clk 0:00:28.2]} 32... Rxb3+ {[%clk 0:00:08.8]} 33. cxb3 {[%clk
0:00:20.4]} 33... Qd3+ {[%clk 0:00:08.9]} 34. Ka2 {[%clk 0:00:10.1]} 34... Qd2+
{[%clk 0:00:08.8]} 35. Ka3 {[%clk 0:00:06.9]} 35... Qa5+ {[%clk 0:00:08.9]} 36.
Kb2 {[%clk 0:00:06.4]} 36... Qd2+ {[%clk 0:00:09.8]} 37. Ka3 {[%clk 0:00:05.1]}
37... Qa5+ {[%clk 0:00:10]} 38. Kb2 {[%clk 0:00:05.3]} 38... Qd2+ {[%clk
0:00:10.2]} 39. Ka3 {[%clk 0:00:05.7]} 1/2-1/2

[Event "Early-Titled-Tuesday-Blitz-May-14-2024"]
[Site "Chess.com"]
[Date "2024.05.14"]
[Round "1"]
[White "Aslanov_Umid"]
[Black "Fjal"]
[Result "0-1"]
[WhiteElo "2626"]
[BlackElo "2336"]
[TimeControl "180+1"]
[EndTime "8:07:24 PDT"]
[Termination "Fjal won by checkmate"]

1. e4 {[%clk 0:03:00.9]} 1... d6 {[%clk 0:02:58.8]} 2. d4 {[%clk 0:02:58.9]}
2... g6 {[%clk 0:02:58.8]} 3. Nc3 {[%clk 0:02:59.1]} 3... Bg7 {[%clk 0:02:59.5]}
4. f4 {[%clk 0:02:59.9]} 4... Nd7 {[%clk 0:02:52.9]} 5. Nf3 {[%clk 0:02:53.8]}
5... c5 {[%clk 0:02:52.9]} 6. Be3 {[%clk 0:02:52.6]} 6... a6 {[%clk 0:02:49.7]}
7. a4 {[%clk 0:02:47.9]} 7... b6 {[%clk 0:02:46.4]} 8. Bd3 {[%clk 0:02:24.3]}
8... Bb7 {[%clk 0:02:45.8]} 9. O-O {[%clk 0:02:10.9]} 9... Ngf6 {[%clk
0:02:43.4]} 10. e5 {[%clk 0:02:08.5]} 10... Nd5 {[%clk 0:02:40.9]} 11. Nxd5
{[%clk 0:02:08.1]} 11... Bxd5 {[%clk 0:02:41.8]} 12. c4 {[%clk 0:02:07]} 12...
Bb7 {[%clk 0:02:35.9]} 13. exd6 {[%clk 0:01:48.2]} 13... exd6 {[%clk 0:02:15.9]}
14. d5 {[%clk 0:01:02.2]} 14... O-O {[%clk 0:02:15.3]} 15. Qc2 {[%clk
0:00:56.4]} 15... b5 {[%clk 0:01:56.6]} 16. cxb5 {[%clk 0:00:48.4]} 16... axb5
{[%clk 0:01:52.1]} 17. Bxb5 {[%clk 0:00:45.6]} 17... Bxd5 {[%clk 0:01:50.7]} 18.
Rad1 {[%clk 0:00:40.6]} 18... Nf6 {[%clk 0:01:45.4]} 19. Nd2 {[%clk 0:00:32.4]}
19... Ng4 {[%clk 0:01:41]} 20. Bf2 {[%clk 0:00:22.5]} 20... Nxf2 {[%clk
0:01:40.2]} 21. Kxf2 {[%clk 0:00:19.1]} 21... Bd4+ {[%clk 0:01:36.9]} 22. Kg3
{[%clk 0:00:19.7]} 22... h5 {[%clk 0:01:17.4]} 23. Nf3 {[%clk 0:00:19.7]} 23...
Bxf3 {[%clk 0:01:15.8]} 24. gxf3 {[%clk 0:00:20.2]} 24... Qf6 {[%clk 0:01:14.5]}
25. f5 {[%clk 0:00:19.1]} 25... Bxb2 {[%clk 0:01:06.7]} 26. Kg2 {[%clk 0:00:19]}
26... g5 {[%clk 0:01:05]} 27. Kh1 {[%clk 0:00:16.2]} 27... Bd4 {[%clk 0:01:03]}
28. Bc6 {[%clk 0:00:12.9]} 28... Rab8 {[%clk 0:01:00.3]} 29. Rb1 {[%clk
0:00:12.7]} 29... Kg7 {[%clk 0:00:59.4]} 30. a5 {[%clk 0:00:12.9]} 30... Rfc8
{[%clk 0:00:49.8]} 31. Bd5 {[%clk 0:00:10.3]} 31... Qe5 {[%clk 0:00:43.9]} 32.
Qe4 {[%clk 0:00:10.7]} 32... Rxb1 {[%clk 0:00:23.9]} 33. Rxb1 {[%clk 0:00:10.1]}
33... c4 {[%clk 0:00:24.1]} 34. Rb7 {[%clk 0:00:06.3]} 34... c3 {[%clk
0:00:20.7]} 35. f6+ {[%clk 0:00:06.8]} 35... Kh8 {[%clk 0:00:20.2]} 36. Qc2
{[%clk 0:00:02.8]} 36... g4 {[%clk 0:00:14.1]} 37. Rxf7 {[%clk 0:00:02.1]} 37...
Qe1+ {[%clk 0:00:13.6]} 38. Kg2 {[%clk 0:00:00.3]} 38... Qg1# {[%clk 0:00:14.5]}
0-1